bitfinex/quotes_BTCUSD_20251011
["timestamp","ask_amount","ask_price","bid_price","bid_amount"]
[1760205701825,0.0005039,112260.0,112240.0,1.21209381]
[1760205701826,0.56980384,112290.0,112270.0,0.1781327]
[1760205702010,1.08806743,112290.0,112280.0,0.11524]
[1760205702153,1.01644381,112290.0,112280.0,0.11524]
[1760205703092,1.01744381,112290.0,112280.0,0.11524]
[1760205703278,1.01644381,112290.0,112280.0,0.11524]
[1760205703457,1.01975855,112290.0,112280.0,0.11524]
[1760205704682,0.53048384,112290.0,112280.0,0.11524]
[1760205711146,0.53048384,112290.0,112280.0,0.29336611]
[1760205713016,0.53048384,112290.0,112280.0,0.11524]
[1760205713524,1.01975855,112290.0,112280.0,0.07308]
[1760205713734,1.05088422,112290.0,112280.0,0.02676]
[1760205713911,1.07767894,112290.0,112280.0,0.02676]
[1760205715511,0.73767894,112290.0,112280.0,0.02676]
[1760205715948,1.04655327,112290.0,112280.0,0.07335]
[1760205717832,1.04655327,112290.0,112280.0,0.11587]
[1760205719145,1.04655327,112290.0,112280.0,0.08911]
[1760205719575,1.04655327,112290.0,112280.0,0.04659]
[1760205721442,1.04655327,112290.0,112280.0,0.08911]
[1760205722254,1.04655327,112290.0,112270.0,0.2406914]
[1760205722457,0.66740082,112280.0,112270.0,0.08865]
[1760205722653,0.66913703,112280.0,112270.0,0.08865]
[1760205723053,0.17986232,112280.0,112270.0,0.26679197]
[1760205723258,0.00173621,112280.0,112270.0,0.26679197]
[1760205725976,0.00173621,112280.0,112270.0,0.26779197]
[1760205728945,0.49101092,112280.0,112270.0,0.26779197]
[1760205729175,0.17986232,112280.0,112270.0,0.26779197]
[1760205729402,0.66913703,112280.0,112270.0,0.26779197]
[1760205730599,0.49101092,112280.0,112270.0,0.26779197]
[1760205731171,0.66913703,112280.0,112270.0,0.26779197]
[1760205732417,0.49101092,112280.0,112270.0,0.26779197]
[1760205733008,0.66913703,112280.0,112270.0,0.26779197]
[1760205738084,0.17986232,112280.0,112270.0,0.26779197]
[1760205738241,0.66913703,112280.0,112270.0,0.29451197]
[1760205745889,0.49101092,112280.0,112270.0,0.29451197]
[1760205747094,0.00173621,112280.0,112270.0,0.29451197]
[1760205750621,0.00173621,112280.0,112270.0,0.29445156]
[1760205751058,0.66913703,112280.0,112270.0,0.29445156]
[1760205752247,0.66913703,112280.0,112270.0,0.11630959]
[1760205752458,0.66913703,112280.0,112270.0,0.29445156]
[1760205753574,0.49101092,112280.0,112270.0,0.29445156]
[1760205759427,0.00173621,112280.0,112270.0,0.29445156]
[1760205759663,0.49101092,112280.0,112270.0,0.29445156]
[1760205760289,0.00173621,112280.0,112270.0,0.29445156]
[1760205761535,0.55218606,112280.0,112270.0,0.29445156]
[1760205767671,0.73031217,112280.0,112270.0,0.29445156]
[1760205768956,1.65327714,112280.0,112270.0,0.02772]
[1760205769141,1.10282729,112280.0,112270.0,0.05496]
[1760205769390,1.12962409,112280.0,112270.0,0.0744]
[1760205769590,1.09710897,112280.0,112270.0,0.11541]
[1760205769796,1.09710897,112280.0,112270.0,0.11441]
[1760205771316,1.09710897,112280.0,112270.0,0.0734]
[1760205771944,1.09710897,112280.0,112270.0,0.11441]
[1760205777119,1.71022584,112280.0,112270.0,0.02672]
[1760205777328,1.71022584,112280.0,112270.0,0.05396]
[1760205777329,1.15977599,112280.0,112270.0,0.05396]
[1760205777529,1.71022584,112280.0,112270.0,0.02672]
[1760205779195,1.71122584,112280.0,112270.0,0.02672]
[1760205780775,1.73210303,112280.0,112270.0,0.02672]
[1760205782059,1.71122584,112280.0,112270.0,0.02672]
[1760205786150,1.13441482,112280.0,112270.0,0.02672]
[1760205786321,1.33934082,112280.0,112270.0,0.02672]
[1760205788149,1.36949272,112280.0,112270.0,0.02672]
[1760205790368,7.27837065,112280.0,112270.0,0.02672]
[1760205790569,6.7279208,112280.0,112270.0,0.02672]
[1760205790777,1.06862356,112250.0,112240.0,0.00095392]
[1760205791649,1.09542792,112250.0,112240.0,0.00095392]
[1760205791868,1.09542792,112250.0,112240.0,0.02861392]
[1760205792082,1.09542792,112250.0,112240.0,0.02911782]
[1760205795443,1.09542792,112250.0,112240.0,0.04861782]
[1760205796477,0.90950988,112250.0,112240.0,0.04861782]
[1760205796689,1.08768359,112250.0,112240.0,0.04861782]
[1760205801433,1.08768359,112250.0,112240.0,0.00145782]
[1760205805884,1.08768359,112250.0,112240.0,0.04861782]
[1760205810828,0.75542792,112250.0,112240.0,0.04861782]
[1760205816168,0.02680436,112250.0,112240.0,0.26464741]
[1760205816379,0.17814952,112270.0,112250.0,0.17816018]
[1760205816557,0.55044985,112260.0,112250.0,0.19777018]
[1760205816790,0.72860769,112260.0,112250.0,0.19777018]
[1760205817000,0.72860769,112260.0,112250.0,0.22479018]
[1760205817199,0.72860769,112260.0,112250.0,0.26263018]
[1760205817845,0.72860769,112260.0,112250.0,0.08447]
[1760205818459,1.27905754,112260.0,112250.0,0.08447]
[1760205819386,1.27905754,112260.0,112250.0,0.08547]
[1760205819590,1.31157242,112260.0,112250.0,0.04763]
[1760205821232,1.31157242,112260.0,112250.0,0.04663]
[1760205821555,0.70034734,112260.0,112250.0,0.04663]
[1760205821758,0.17817371,112250.0,112240.0,0.0594639]
[1760205821964,0.66784833,112250.0,112240.0,0.0594639]
[1760205822171,0.66784833,112250.0,112240.0,0.0871839]
[1760205822373,0.66784833,112250.0,112240.0,0.08987433]
[1760205828329,0.17817371,112250.0,112240.0,0.26806392]
[1760205828505,0.66784833,112250.0,112240.0,0.26806392]
[1760205828822,0.20496041,112260.0,112240.0,0.26806392]
[1760205829031,1.00783692,112260.0,112250.0,0.0618]
[1760205829456,1.00783692,112260.0,112250.0,0.08927]
[1760205831746,1.00783692,112260.0,112250.0,0.02008]
[1760205831957,1.00783692,112260.0,112250.0,0.04755]
[1760205832284,1.03463875,112260.0,112250.0,0.04755]
[1760205834350,1.03463875,112260.0,112250.0,0.04966138]
[1760205841358,1.03463875,112260.0,112250.0,0.02219138]
[1760205841797,1.03463875,112260.0,112250.0,0.04966138]
[1760205844557,1.03463875,112260.0,112250.0,0.09138138]
[1760205844764,1.03463875,112260.0,112250.0,0.04966138]
[1760205846017,1.03463875,112260.0,112250.0,0.09138138]
[1760205847223,1.03463429,112260.0,112250.0,0.26955509]
[1760205847818,1.00783246,112260.0,112250.0,0.09138138]
[1760205851363,0.51815784,112260.0,112250.0,0.09138138]
[1760205851565,1.00783246,112260.0,112250.0,0.09138138]
[1760205853758,1.03463295,112260.0,112250.0,0.09138138]
[1760205865121,0.69463295,112260.0,112250.0,0.09138138]
[1760205866579,0.69463295,112260.0,112250.0,0.04966138]
[1760205868341,0.50376915,112260.0,112250.0,0.08729138]
[1760205868545,0.68192699,112260.0,112250.0,0.08729138]
[1760205871031,0.20495833,112260.0,112250.0,0.08729138]
[1760205871252,0.69463295,112260.0,112250.0,0.08729138]
[1760205872920,0.69463295,112260.0,112250.0,0.04966138]
[1760205873378,0.69463295,112260.0,112250.0,0.02219138]
[1760205873540,0.69463295,112260.0,112250.0,0.04965138]
[1760205874349,0.69463295,112260.0,112250.0,0.02219138]
[1760205874781,0.69463295,112260.0,112250.0,0.04965138]
[1760205881506,1.30670481,112260.0,112250.0,0.04965138]
[1760205881652,2.34941554,112260.0,112250.0,0.00211138]
[1760205882763,2.31884146,112260.0,112250.0,0.00211138]
[1760205884047,2.31984146,112260.0,112250.0,0.00211138]
[1760205885024,2.23112212,112260.0,112250.0,0.00211138]
[1760205890499,1.68024888,112260.0,112250.0,0.00211138]
[1760205903904,1.64770481,112260.0,112250.0,0.00211138]
[1760205904518,0.54595833,112260.0,112250.0,0.00211138]
[1760205904740,1.64770481,112260.0,112250.0,0.00211138]
[1760205905988,1.64652554,112260.0,112250.0,0.00211138]
[1760205907017,1.64652554,112260.0,112250.0,0.02951138]
[1760205907232,1.64652554,112260.0,112250.0,0.04997138]
[1760205907890,1.64652554,112260.0,112250.0,0.09180138]
[1760205908311,1.64652554,112260.0,112250.0,0.04997138]
[1760205914719,1.64652554,112260.0,112250.0,0.08778138]
[1760205914930,1.64652554,112260.0,112250.0,0.04997138]
[1760205921077,1.64652554,112260.0,112250.0,0.08778138]
[1760205922674,1.64652554,112260.0,112250.0,0.04997138]
[1760205923370,0.54477906,112260.0,112250.0,0.04997138]
[1760205923587,0.54477906,112260.0,112250.0,0.08778138]
[1760205923788,1.0956523,112260.0,112250.0,0.08778138]
[1760205925255,1.64652554,112260.0,112250.0,0.08778138]
[1760205929440,1.64652554,112260.0,112250.0,0.00211138]
[1760205929889,1.66346633,112260.0,112250.0,0.00211138]
[1760205930096,1.6960104,112260.0,112250.0,0.00211138]
[1760205931117,1.67906961,112260.0,112250.0,0.00211138]
[1760205932892,2.26051693,112260.0,112250.0,0.00211138]
[1760205933099,1.70964369,112260.0,112250.0,0.00211138]
[1760205933481,2.26051693,112260.0,112250.0,0.00211138]
[1760205937735,7.27852283,112260.0,112250.0,0.00211138]
[1760205937939,7.40313137,112260.0,112250.0,0.00211138]
[1760205939671,2.41527737,112260.0,112250.0,0.00211138]
[1760205939906,7.40313137,112260.0,112250.0,0.00211138]
[1760205940269,7.40311429,112260.0,112250.0,0.00211138]
[1760205941472,1.74255371,112260.0,112250.0,0.00211138]
[1760205941675,6.73040771,112260.0,112250.0,0.00211138]
[1760205941899,1.74255371,112260.0,112250.0,0.00211138]
[1760205942101,6.73040771,112260.0,112250.0,0.00211138]
[1760205942865,0.17823723,112210.0,112190.0,0.09838362]
[1760205943019,0.17823723,112210.0,112190.0,0.098434]
[1760205943020,1.49816625,112200.0,112190.0,0.098434]
[1760205943220,1.53957029,112200.0,112190.0,0.098434]
[1760205943426,1.53957029,112200.0,112190.0,0.02681038]
[1760205943645,1.56638831,112200.0,112190.0,0.02681038]
[1760205948274,1.65510765,112200.0,112190.0,0.02681038]
[1760205948711,1.65510765,112200.0,112190.0,0.03028568]
[1760205950730,1.56638831,112200.0,112190.0,0.03028568]
[1760205951538,6.55424231,112200.0,112190.0,0.03028568]
[1760205952573,6.58481639,112200.0,112190.0,0.03028568]
[1760205952991,6.58481639,112200.0,112190.0,0.00352568]
[1760205953799,6.58581639,112200.0,112190.0,0.00352568]
[1760205954007,1.68668173,112200.0,112190.0,0.00352568]
[1760205954236,6.67453573,112200.0,112190.0,0.00352568]
[1760205954419,1.68668173,112200.0,112190.0,0.00352568]
[1760205954549,6.67453573,112200.0,112190.0,0.00352568]
[1760205954762,6.70468763,112200.0,112190.0,0.00352568]
[1760205954976,0.17831669,112160.0,112150.0,0.12940362]
[1760205955176,0.66827326,112160.0,112150.0,0.15623401]
[1760205955690,0.69509713,112160.0,112150.0,0.08461039]
[1760205956308,0.69509713,112160.0,112150.0,0.08561039]
[1760205956903,0.69509713,112160.0,112150.0,0.08461039]
[1760205958511,0.20514056,112160.0,112150.0,0.08461039]
[1760205958716,0.69509713,112160.0,112150.0,0.08461039]
[1760205960805,0.69509713,112160.0,112150.0,0.26526128]
[1760205961020,0.20514056,112160.0,112150.0,0.26526128]
[1760205961224,0.20514056,112160.0,112150.0,0.08692869]
[1760205961634,0.20514056,112160.0,112150.0,0.26526128]
[1760205962070,0.02682387,112160.0,112150.0,0.26526128]
[1760205962893,0.20514056,112160.0,112150.0,0.26526128]
[1760205963544,0.02682387,112160.0,112150.0,0.26526128]
[1760205963754,0.20514056,112160.0,112150.0,0.26526128]
[1760205964613,0.20514056,112160.0,112150.0,0.08692869]
[1760205965164,0.20514056,112160.0,112150.0,0.26526128]
[1760205966836,0.69509713,112160.0,112150.0,0.08692869]
[1760205967381,0.7276412,112160.0,112150.0,0.08692869]
[1760205969634,0.03254407,112160.0,112150.0,0.08692869]
[1760205969852,0.54932478,112160.0,112150.0,0.08692869]
[1760205970297,0.72764147,112160.0,112150.0,0.08692869]
[1760205973531,0.70081733,112160.0,112150.0,0.08692869]
[1760205974876,0.66827326,112160.0,112150.0,0.26526128]
[1760205976462,0.51830079,112170.0,112160.0,0.17831669]
[1760205976664,1.00825736,112170.0,112160.0,0.08241]
[1760205976787,1.00825736,112170.0,112160.0,0.08414857]
[1760205976996,1.00825736,112170.0,112160.0,0.04635857]
[1760205977444,1.00825736,112170.0,112160.0,0.08414857]
[1760205978707,0.51830079,112170.0,112160.0,0.08414857]
[1760205978916,1.00825736,112170.0,112160.0,0.08414857]
[1760205984508,0.51830079,112170.0,112160.0,0.08414857]
[1760205984749,1.00825736,112170.0,112160.0,0.08414857]
[1760205985203,1.00825736,112170.0,112160.0,0.00173857]
[1760205985425,1.04080143,112170.0,112160.0,0.00173857]
[1760205985647,1.07137551,112170.0,112160.0,0.00173857]
[1760205985864,1.04080143,112170.0,112160.0,0.00173857]
[1760205986084,0.70080143,112170.0,112160.0,0.00173857]
[1760205986537,0.70080143,112170.0,112160.0,0.02816857]
[1760205986977,0.70080143,112170.0,112160.0,0.00173857]
[1760205987437,0.70080143,112170.0,112160.0,0.08414857]
[1760205987644,0.70080143,112170.0,112160.0,0.04635857]
[1760205989609,1.04080143,112170.0,112160.0,0.01992857]
[1760205989821,1.04080143,112170.0,112160.0,0.00173857]
[1760205990932,1.04080143,112170.0,112160.0,0.02816857]
[1760205991146,1.04080143,112170.0,112160.0,0.00173857]
[1760205991814,1.04080143,112170.0,112160.0,0.02816857]
[1760205994596,1.04080143,112170.0,112160.0,0.00173857]
[1760205995287,6.63748324,112170.0,112160.0,0.00173857]
[1760205995503,6.68370663,112170.0,112160.0,0.00173857]
[1760205995706,6.67332509,112170.0,112160.0,0.00173857]
[1760205996331,6.58560575,112170.0,112160.0,0.00173857]
[1760205996953,6.58660575,112170.0,112160.0,0.00173857]
[1760205997371,6.5507639,112170.0,112160.0,0.00173857]
[1760205997793,1.09154333,112170.0,112160.0,0.00173857]
[1760205997996,1.05899926,112170.0,112160.0,0.00173857]
[1760205998493,1.05899926,112170.0,112160.0,0.02816857]
[1760205998700,0.19889079,112170.0,112160.0,0.08414857]
[1760205998934,0.67025736,112170.0,112160.0,0.08414857]
[1760205999153,0.66925736,112170.0,112160.0,0.08414857]
[1760205999363,1.00925736,112170.0,112160.0,0.08414857]
[1760205999578,0.67025736,112170.0,112160.0,0.08414857]
[1760205999783,1.00925736,112170.0,112160.0,0.08414857]
[1760206000207,1.00825736,112170.0,112160.0,0.08414857]
[1760206000822,1.00825736,112170.0,112160.0,0.26246526]
[1760206001035,0.67716917,112180.0,112160.0,0.26246526]
[1760206001246,0.1872126,112180.0,112170.0,0.05914]
[1760206001446,0.67716917,112180.0,112170.0,0.08494895]
[1760206001654,0.48995657,112190.0,112180.0,0.17827932]
[1760206001905,0.66822557,112190.0,112180.0,0.22301932]
[1760206002109,0.48995657,112190.0,112180.0,0.26232932]
[1760206002602,0.48995657,112190.0,112180.0,0.26132932]
[1760206002806,0.66822557,112190.0,112180.0,0.26132932]
[1760206002956,1.00822557,112190.0,112180.0,0.26132932]
[1760206003163,1.00922557,112190.0,112180.0,0.08405]
[1760206003565,1.07078151,112190.0,112180.0,0.08405]
[1760206007049,1.07078151,112190.0,112180.0,0.08462942]
[1760206013882,1.07078151,112190.0,112180.0,0.26291431]
[1760206015137,0.85218611,112190.0,112180.0,0.26291431]
[1760206015342,0.73078151,112190.0,112180.0,0.26291431]
[1760206019837,0.73078151,112190.0,112180.0,0.08462942]
[1760206021391,0.73078151,112190.0,112180.0,0.26291431]
[1760206025217,0.519269,112190.0,112180.0,0.26291431]
[1760206025424,1.07078151,112190.0,112180.0,0.08462942]
[1760206026471,1.07078151,112190.0,112180.0,0.26291431]
[1760206027507,1.07078151,112190.0,112180.0,0.08462942]
[1760206027838,0.519269,112190.0,112180.0,0.26291431]
[1760206028048,1.07078151,112190.0,112180.0,0.26291431]
[1760206029326,1.07078151,112190.0,112180.0,0.08462942]
[1760206030502,1.07078151,112190.0,112180.0,0.26291431]
[1760206033165,1.07078151,112190.0,112180.0,0.08462942]
[1760206033375,0.519269,112190.0,112180.0,0.26291431]
[1760206033582,1.07078151,112190.0,112180.0,0.26291431]
[1760206037436,1.07078151,112190.0,112180.0,0.08462942]
[1760206038673,1.07078151,112190.0,112180.0,0.26291431]
[1760206038874,0.519269,112190.0,112180.0,0.26291431]
[1760206039080,1.07078151,112190.0,112180.0,0.26291431]
[1760206040259,0.89251251,112190.0,112180.0,0.26291431]
[1760206040914,1.07078151,112190.0,112180.0,0.26291431]
[1760206043119,0.519269,112190.0,112180.0,0.26291431]
[1760206043341,1.07078151,112190.0,112180.0,0.26291431]
[1760206045399,1.07078151,112190.0,112180.0,0.08462942]
[1760206046333,0.519269,112190.0,112180.0,0.08462942]
[1760206046535,1.07078151,112190.0,112180.0,0.08462942]
[1760206046737,1.07078151,112190.0,112180.0,0.26291431]
[1760206050477,1.06978151,112190.0,112180.0,0.26291431]
[1760206050706,1.06978151,112190.0,112180.0,0.26491431]
[1760206053269,1.06978151,112190.0,112180.0,0.08662942]
[1760206054296,0.518269,112190.0,112180.0,0.26491431]
[1760206054500,1.06978151,112190.0,112180.0,0.26491431]
[1760206063938,0.518269,112190.0,112180.0,0.26491431]
[1760206064164,1.06978151,112190.0,112180.0,0.26491431]
[1760206064892,0.89151251,112190.0,112180.0,0.26491431]
[1760206065441,0.83013938,112190.0,112180.0,0.26491431]
[1760206065959,1.00840838,112190.0,112180.0,0.26491431]
[1760206068233,0.518269,112190.0,112180.0,0.26491431]
[1760206068481,1.00840838,112190.0,112180.0,0.26491431]
[1760206071194,0.518269,112190.0,112180.0,0.26491431]
[1760206071603,0.66840838,112190.0,112180.0,0.26491431]
[1760206082339,0.178269,112190.0,112180.0,0.26491431]
[1760206082534,0.49013938,112190.0,112180.0,0.26491431]
[1760206083432,0.17921557,112200.0,112190.0,0.178269]
[1760206083628,0.66935495,112200.0,112190.0,0.258499]
[1760206084056,0.66935495,112200.0,112190.0,0.08023]
[1760206084339,1.00935495,112200.0,112190.0,0.08023]
[1760206084585,1.00935495,112200.0,112190.0,0.08028039]
[1760206090080,1.49949433,112200.0,112190.0,0.08028039]
[1760206093938,1.00935495,112200.0,112190.0,0.08028039]
[1760206094168,1.03617024,112200.0,112190.0,0.08028039]
[1760206096732,1.52630962,112200.0,112190.0,0.08028039]
[1760206100722,0.54603086,112200.0,112190.0,0.08028039]
[1760206100935,1.52630962,112200.0,112190.0,0.08028039]
[1760206101362,1.55319951,112200.0,112190.0,5.039e-05]
[1760206101570,6.60738652,112200.0,112190.0,5.039e-05]
[1760206102181,6.65419618,112200.0,112190.0,5.039e-05]
[1760206102386,6.67338493,112200.0,112190.0,5.039e-05]
[1760206102765,1.68553093,112200.0,112190.0,5.039e-05]
[1760206102972,6.67338493,112200.0,112190.0,5.039e-05]
[1760206103378,6.67438493,112200.0,112190.0,5.039e-05]
[1760206104181,7.16552431,112200.0,112190.0,5.039e-05]
[1760206104439,4.41899867,112190.0,112180.0,1e-08]
[1760206104643,1.68375201,112190.0,112180.0,5.04e-05]
[1760206104846,6.83401614,112190.0,112180.0,5.04e-05]
[1760206105815,1.84616214,112190.0,112180.0,5.04e-05]
[1760206106030,6.83401614,112190.0,112180.0,5.04e-05]
[1760206106475,1.84716214,112190.0,112180.0,5.04e-05]
[1760206106632,6.83501614,112190.0,112180.0,5.04e-05]
[1760206107080,6.83601614,112190.0,112180.0,5.04e-05]
[1760206107289,1.84816214,112190.0,112180.0,5.04e-05]
[1760206107505,6.83601614,112190.0,112180.0,5.04e-05]
[1760206109237,1.74816215,112190.0,112180.0,5.04e-05]
[1760206109460,6.83601614,112190.0,112180.0,5.04e-05]
[1760206109671,6.80936793,112190.0,112180.0,5.04e-05]
[1760206110103,6.77589363,112190.0,112180.0,5.04e-05]
[1760206110517,1.78803963,112190.0,112180.0,5.04e-05]
[1760206110721,6.77589363,112190.0,112180.0,5.04e-05]
[1760206110925,1.68803964,112190.0,112180.0,5.04e-05]
[1760206111140,1.78803963,112190.0,112180.0,5.04e-05]
[1760206111572,6.77589363,112190.0,112180.0,5.04e-05]
[1760206112051,6.80272245,112190.0,112180.0,5.04e-05]
[1760206112269,1.81486845,112190.0,112180.0,5.04e-05]
[1760206112507,6.80272245,112190.0,112180.0,5.04e-05]
[1760206114647,1.81486845,112190.0,112180.0,5.04e-05]
[1760206115078,6.80272245,112190.0,112180.0,5.04e-05]
[1760206115289,1.81486845,112190.0,112180.0,5.04e-05]
[1760206115496,6.80272245,112190.0,112180.0,5.04e-05]
[1760206115712,6.70272246,112190.0,112180.0,5.04e-05]
[1760206115934,6.80272245,112190.0,112180.0,5.04e-05]
[1760206116775,1.81486845,112190.0,112180.0,5.04e-05]
[1760206117011,6.80272245,112190.0,112180.0,5.04e-05]
[1760206117220,6.70272246,112190.0,112180.0,5.04e-05]
[1760206117429,6.80272245,112190.0,112180.0,5.04e-05]
[1760206118496,6.80265084,112190.0,112180.0,5.04e-05]
[1760206118707,1.84827114,112190.0,112180.0,5.04e-05]
[1760206119152,6.83612514,112190.0,112180.0,5.04e-05]
[1760206119621,1.84827114,112190.0,112180.0,5.04e-05]
[1760206120045,6.83612514,112190.0,112180.0,5.04e-05]
[1760206120689,1.84827114,112190.0,112180.0,5.04e-05]
[1760206120944,6.83612514,112190.0,112180.0,5.04e-05]
[1760206121353,1.84827114,112190.0,112180.0,5.04e-05]
[1760206121541,6.83612514,112190.0,112180.0,5.04e-05]
[1760206121732,1.84827114,112190.0,112180.0,5.04e-05]
[1760206121948,6.83612514,112190.0,112180.0,5.04e-05]
[1760206122146,1.84827114,112190.0,112180.0,5.04e-05]
[1760206122348,6.83612514,112190.0,112180.0,5.04e-05]
[1760206122545,1.84827114,112190.0,112180.0,5.04e-05]
[1760206122746,6.83612514,112190.0,112180.0,5.04e-05]
[1760206124231,6.21251147,112190.0,112180.0,5.04e-05]
[1760206124651,1.22465747,112190.0,112180.0,5.04e-05]
[1760206124862,6.70265085,112190.0,112180.0,5.04e-05]
[1760206125553,5.84235957,112190.0,112180.0,5.04e-05]
[1760206125793,5.70163804,112190.0,112180.0,5.04e-05]
[1760206126013,5.6850912,112190.0,112180.0,5.04e-05]
[1760206126237,6.0250912,112190.0,112180.0,0.0249804]
[1760206126464,6.0240912,112190.0,112180.0,0.0435904]
[1760206126689,6.0230912,112190.0,112180.0,0.0435904]
[1760206126898,1.0362372,112190.0,112180.0,0.0435904]
[1760206127117,1.0372372,112190.0,112180.0,0.0435904]
[1760206127519,1.65037718,112190.0,112180.0,0.0435904]
[1760206127730,0.7587375,112190.0,112180.0,0.0797704]
[1760206127945,1.30937718,112190.0,112180.0,0.0797704]
[1760206128169,1.64937718,112190.0,112180.0,5.04e-05]
[1760206128388,1.64837718,112190.0,112180.0,5.04e-05]
[1760206128616,6.82143543,112190.0,112180.0,5.04e-05]
[1760206129485,1.86928934,112190.0,112180.0,5.04e-05]
[1760206129691,6.85714334,112190.0,112180.0,5.04e-05]
[1760206130336,1.87028934,112190.0,112180.0,5.04e-05]
[1760206130758,6.85814334,112190.0,112180.0,5.04e-05]
[1760206130962,1.87128934,112190.0,112180.0,5.04e-05]
[1760206131242,6.85914334,112190.0,112180.0,5.04e-05]
[1760206133001,1.87128934,112190.0,112180.0,5.04e-05]
[1760206133231,6.85914334,112190.0,112180.0,5.04e-05]
[1760206135130,1.87128934,112190.0,112180.0,5.04e-05]
[1760206135280,6.85914334,112190.0,112180.0,5.04e-05]
[1760206136071,1.87128934,112190.0,112180.0,5.04e-05]
[1760206136435,6.85914334,112190.0,112180.0,5.04e-05]
[1760206136654,1.87128934,112190.0,112180.0,5.04e-05]
[1760206137087,6.85914334,112190.0,112180.0,5.04e-05]
[1760206137289,1.87128934,112190.0,112180.0,5.04e-05]
[1760206137687,6.85914334,112190.0,112180.0,5.04e-05]
[1760206138548,1.87128934,112190.0,112180.0,5.04e-05]
[1760206138782,6.85914334,112190.0,112180.0,5.04e-05]
[1760206139841,1.87128934,112190.0,112180.0,5.04e-05]
[1760206140492,6.85914334,112190.0,112180.0,5.04e-05]
[1760206141103,1.87128934,112190.0,112180.0,5.04e-05]
[1760206141313,6.85914334,112190.0,112180.0,5.04e-05]
[1760206142137,1.87128934,112190.0,112180.0,5.04e-05]
[1760206142391,6.85914334,112190.0,112180.0,5.04e-05]
[1760206143401,1.87128934,112190.0,112180.0,5.04e-05]
[1760206143606,6.85914334,112190.0,112180.0,5.04e-05]
[1760206143802,1.87128934,112190.0,112180.0,5.04e-05]
[1760206144009,6.85914334,112190.0,112180.0,5.04e-05]
[1760206144762,1.87133246,112190.0,112180.0,5.04e-05]
[1760206144971,6.85918646,112190.0,112180.0,5.04e-05]
[1760206146421,6.73699282,112190.0,112180.0,5.04e-05]
[1760206147933,1.74913882,112190.0,112180.0,5.04e-05]
[1760206148387,6.73699282,112190.0,112180.0,5.04e-05]
[1760206148582,6.70413411,112190.0,112180.0,5.04e-05]
[1760206150783,6.73699282,112190.0,112180.0,5.04e-05]
[1760206150961,6.82571216,112190.0,112180.0,5.04e-05]
[1760206153671,6.82575216,112190.0,112180.0,5.04e-05]
[1760206157812,6.80915916,112190.0,112180.0,5.04e-05]
[1760206169312,6.79000113,112190.0,112180.0,5.04e-05]
[1760206171913,6.51995038,112190.0,112180.0,5.04e-05]
[1760206172116,5.94454429,112190.0,112180.0,5.04e-05]
[1760206172324,6.49618397,112190.0,112180.0,5.04e-05]
[1760206172849,6.67445297,112190.0,112180.0,5.04e-05]
[1760206173126,6.70127665,112190.0,112180.0,5.04e-05]
[1760206175269,6.78999599,112190.0,112180.0,5.04e-05]
[1760206182236,6.82347029,112190.0,112180.0,5.04e-05]
[1760206183610,6.85935627,112190.0,112180.0,5.04e-05]
[1760206185915,6.82588197,112190.0,112180.0,5.04e-05]
[1760206187593,6.21306302,112190.0,112180.0,5.04e-05]
[1760206199296,6.21307632,112190.0,112180.0,5.04e-05]
[1760206201619,6.21307508,112190.0,112180.0,5.04e-05]
[1760206202762,6.12435574,112190.0,112180.0,5.04e-05]
[1760206207444,6.10514536,112190.0,112180.0,5.04e-05]
[1760206208376,6.10514536,112190.0,112180.0,0.0246004]
[1760206208377,1.0704518,112190.0,112180.0,0.0246004]
[1760206208578,1.0704518,112190.0,112180.0,0.0785004]
[1760206208910,0.69759309,112190.0,112180.0,0.0785004]
[1760206209280,1.03759309,112190.0,112180.0,0.0785004]
[1760206209564,1.03659309,112190.0,112180.0,0.0785004]
[1760206209909,1.03559309,112190.0,112180.0,0.0785004]
[1760206222590,1.03559309,112190.0,112180.0,0.09632888]
[1760206222771,1.03559309,112190.0,112180.0,0.0785004]
[1760206228178,1.03559309,112190.0,112180.0,0.0419104]
[1760206228777,1.03559309,112190.0,112180.0,0.0786004]
[1760206246086,0.54513268,112190.0,112180.0,0.0786004]
[1760206246279,1.03559309,112190.0,112180.0,0.0786004]
[1760206249595,1.64837466,112190.0,112180.0,0.0786004]
[1760206251624,1.64837466,112190.0,112180.0,5.04e-05]
[1760206251818,7.34185509,112190.0,112180.0,5.04e-05]
[1760206252210,7.37200699,112190.0,112180.0,5.04e-05]
[1760206253612,7.37300699,112190.0,112180.0,5.04e-05]
[1760206253809,7.37400699,112190.0,112180.0,5.04e-05]
[1760206258271,7.40981187,112190.0,112180.0,5.04e-05]
[1760206258483,2.42195787,112190.0,112180.0,5.04e-05]
[1760206258693,7.40981187,112190.0,112180.0,5.04e-05]
[1760206258899,2.42195787,112190.0,112180.0,5.04e-05]
[1760206259100,7.40981187,112190.0,112180.0,5.04e-05]
[1760206260125,2.42195787,112190.0,112180.0,5.04e-05]
[1760206260347,7.40981187,112190.0,112180.0,5.04e-05]
[1760206261165,2.42195787,112190.0,112180.0,5.04e-05]
[1760206261375,7.40981187,112190.0,112180.0,5.04e-05]
[1760206261977,2.42195787,112190.0,112180.0,5.04e-05]
[1760206262192,7.40981187,112190.0,112180.0,5.04e-05]
[1760206263670,2.38983613,112190.0,112180.0,5.04e-05]
[1760206263877,7.37769013,112190.0,112180.0,5.04e-05]
[1760206264381,2.38983613,112190.0,112180.0,5.04e-05]
[1760206264594,0.51831669,112160.0,112150.0,0.07202362]
[1760206264812,1.65472303,112160.0,112150.0,0.07215846]
[1760206265246,6.64257703,112160.0,112150.0,0.00053484]
[1760206265467,6.66940585,112160.0,112150.0,0.00053484]
[1760206270250,6.66940585,112160.0,112150.0,0.00227363]
[1760206271581,6.72993495,112160.0,112150.0,0.00227363]
[1760206271808,7.37027528,112160.0,112150.0,0.00227363]
[1760206272035,7.37027528,112160.0,112150.0,1e-08]
[1760206272036,7.30673372,112160.0,112150.0,1e-08]
[1760206272278,5.71368581,112160.0,112150.0,1e-08]
[1760206272484,7.36854878,112160.0,112150.0,1e-08]
[1760206272714,7.38513999,112160.0,112150.0,1e-08]
[1760206273186,7.38613999,112160.0,112150.0,1e-08]
[1760206273431,2.39828599,112160.0,112150.0,1e-08]
[1760206273630,7.38713999,112160.0,112150.0,1e-08]
[1760206274252,7.40624606,112160.0,112150.0,1e-08]
[1760206274668,2.41839206,112160.0,112150.0,1e-08]
[1760206274877,7.40624606,112160.0,112150.0,1e-08]
[1760206275690,2.41839206,112160.0,112150.0,1e-08]
[1760206275898,7.40624606,112160.0,112150.0,1e-08]
[1760206277364,2.41839206,112160.0,112150.0,1e-08]
[1760206277578,7.40624606,112160.0,112150.0,1e-08]
[1760206277999,2.41839206,112160.0,112150.0,1e-08]
[1760206278203,7.4062385,112160.0,112150.0,1e-08]
[1760206278818,2.4183845,112160.0,112150.0,1e-08]
[1760206279022,7.4062385,112160.0,112150.0,1e-08]
[1760206281393,2.4183845,112160.0,112150.0,1e-08]
[1760206281612,7.4062385,112160.0,112150.0,1e-08]
[1760206282040,2.4183845,112160.0,112150.0,1e-08]
[1760206282250,7.4062385,112160.0,112150.0,1e-08]
[1760206282892,2.4183845,112160.0,112150.0,1e-08]
[1760206283136,7.4062385,112160.0,112150.0,1e-08]
[1760206283806,0.54850039,112140.0,112130.0,0.0004]